bitfinex-derivatives/quotes_ETHF0:USTF0_20250912
["timestamp","ask_amount","ask_price","bid_price","bid_amount"]
[1757655629756,0.03046038,4523.6,4523.5,0.8109]
[1757655629958,0.03046038,4523.6,4523.5,1.08864732]
[1757655637866,0.03046038,4523.6,4523.5,0.8109]
[1757655639562,1.09539888,4524.3,4524.0,0.1207]
[1757655639767,1.09539888,4524.3,4524.2,0.6903]
[1757655639969,1.67211808,4524.3,4524.2,0.6903]
[1757655640270,0.5767192,4524.3,4524.2,0.6903]
[1757655640670,1.09539888,4524.6,4524.5,0.811]
[1757655640970,1.67221384,4524.6,4524.5,0.811]
[1757655641166,1.83971384,4524.6,4524.5,0.811]
[1757655642774,1.83971384,4524.6,4524.5,1.090627]
[1757655644376,1.83913173,4524.6,4524.5,1.090627]
[1757655645973,0.57623285,4524.6,4524.5,1.090627]
[1757655648479,1.83913173,4524.6,4524.5,1.090627]
[1757655648680,2.00663173,4524.6,4524.5,1.090627]
[1757655650774,1.83913173,4524.6,4524.5,1.090627]
[1757655651978,0.57623285,4524.6,4524.5,2.18602588]
[1757655652183,0.1669,4525.6,4525.5,0.5163]
[1757655652379,1.83886544,4525.6,4525.5,0.795927]
[1757655652674,1.83886544,4525.6,4525.5,1.090627]
[1757655652675,0.74346656,4525.6,4525.5,1.090627]
[1757655652878,0.57656656,4525.6,4525.5,1.090627]
[1757655653073,1.09539888,4525.9,4525.7,0.3956]
[1757655653280,0.57646055,4525.8,4525.7,0.6903]
[1757655653479,0.57646055,4525.8,4525.7,0.96993295]
[1757655653875,1.83875943,4525.8,4525.7,0.96993295]
[1757655657882,2.00565943,4525.8,4525.7,0.96993295]
[1757655658078,2.11075943,4525.8,4525.7,0.57433295]
[1757655659085,2.11075943,4525.8,4525.7,0.77303295]
[1757655660085,2.00565943,4525.8,4525.7,0.77303295]
[1757655660282,2.00565943,4525.8,4525.7,0.97853295]
[1757655664591,2.00565943,4525.8,4525.7,0.6989]
[1757655664892,2.00565943,4525.8,4525.7,0.97824752]
[1757655665195,2.00565943,4525.8,4525.7,0.6989]
[1757655665395,2.11075943,4525.8,4525.7,0.2947]
[1757655666094,0.3342,4525.2,4525.1,0.5056]
[1757655666296,1.42959888,4525.2,4525.1,0.99049849]
[1757655666889,1.42959888,4525.2,4525.1,0.99050592]
[1757655671194,2.00614301,4525.2,4525.1,0.99050592]
[1757655671692,0.74364413,4525.2,4525.1,0.99050592]
[1757655671898,1.56059888,4525.9,4525.8,0.1987]
[1757655672195,2.13718229,4525.9,4525.8,0.5056]
[1757655672893,2.13718229,4525.9,4525.8,0.78531732]
[1757655673195,2.24228229,4525.9,4525.8,0.78531732]
[1757655673492,2.00618229,4525.9,4525.8,0.99081732]
[1757655673688,1.83908229,4525.9,4525.8,0.99081732]
[1757655673890,0.57658341,4525.9,4525.8,0.99081732]
[1757655674093,1.42349888,4526.5,4526.0,0.1228]
[1757655674397,0.1671,4526.2,4526.1,0.99081732]
[1757655677193,1.09539888,4526.5,4526.1,0.99081732]
[1757655677396,1.09539888,4526.5,4526.0,0.1228]
[1757655677397,1.26249888,4526.9,4526.8,0.4042]
[1757655677598,1.83817687,4526.9,4526.8,0.4042]
[1757655677895,2.00527687,4526.9,4526.8,0.7111]
[1757655678094,0.74277799,4526.9,4526.8,0.7111]
[1757655678290,2.00527687,4526.9,4526.8,0.7111]
[1757655678901,2.11037687,4526.9,4526.8,0.7111]
[1757655679495,2.00527687,4526.9,4526.8,0.98070737]
[1757655679696,0.90987799,4526.9,4526.8,0.98070737]
[1757655679897,0.57567799,4526.9,4526.8,2.07610625]
[1757655680200,32.2281,4527.4,4527.3,0.7111]
[1757655680499,0.96570323,4527.4,4527.3,0.98070737]
[1757655680695,0.74270323,4527.4,4527.3,0.98070737]
[1757655681803,1.01400323,4527.4,4527.3,0.77520737]
[1757655684102,1.01400323,4527.4,4527.3,0.5056]
[1757655685396,0.90980323,4527.4,4527.3,0.5056]
[1757655689304,1.01360323,4527.4,4527.3,0.5056]
[1757655689905,0.90980323,4527.4,4527.3,0.5056]
[1757655690606,0.3342,4527.4,4527.3,0.7006]
[1757655696218,0.90905242,4527.4,4527.3,0.7006]
[1757655698022,2.51314291,4527.4,4527.1,0.2929]
[1757655698321,0.436,4527.2,4527.1,0.2929]
[1757655698624,1.01085242,4527.2,4527.1,0.4939]
[1757655699219,1.01085242,4527.2,4527.1,0.76306081]
[1757655699523,0.90705242,4527.2,4527.1,0.76306081]
[1757655699721,1.13005242,4527.2,4527.1,0.95806081]
[1757655702616,0.90705242,4527.2,4527.1,0.95806081]
[1757655702816,1.13005242,4527.2,4527.1,0.95806081]
[1757655703116,0.96395242,4527.2,4527.1,0.95806081]
[1757655703323,1.13005242,4527.2,4527.1,0.95806081]
[1757655705927,0.96395242,4527.2,4527.1,0.95806081]
[1757655706127,0.57485242,4527.2,4527.1,0.95806081]
[1757655706424,0.223,4527.4,4527.1,0.95806081]
[1757655706623,0.57485242,4527.3,4527.2,0.95806081]
[1757655711525,0.57670844,4527.3,4527.2,0.95806081]
[1757655715836,0.74410844,4527.3,4527.2,0.95806081]
[1757655716135,0.74410844,4527.3,4527.2,0.56206081]
[1757655716136,1.01610844,4527.3,4527.2,0.56206081]
[1757655716931,1.01610844,4527.3,4527.2,0.2929]
[1757655718336,1.23910844,4527.3,4527.2,0.2929]
[1757655722141,1.13450844,4527.3,4527.2,0.4921]
[1757655722443,1.13450844,4527.3,4527.2,0.7038]
[1757655723243,0.57670844,4527.3,4527.2,0.7038]
[1757655732146,0.57670844,4527.3,4527.2,23.8038]
[1757655732849,0.74400844,4527.3,4527.2,23.8038]
[1757655733148,0.91130844,4527.3,4527.2,23.8038]
[1757655733354,0.74400844,4527.3,4527.2,23.8038]
[1757655733649,0.57670844,4527.3,4527.2,23.8038]
[1757655733952,0.57670844,4527.3,4527.2,0.7038]
[1757655735052,0.57670844,4527.3,4527.2,23.8038]
[1757655735951,0.74400844,4527.3,4527.2,23.8038]
[1757655736948,0.74400844,4527.3,4527.2,0.7038]
[1757655737152,0.91130844,4527.3,4527.2,0.7038]
[1757655742357,2.00493157,4527.3,4527.2,0.7038]
[1757655745757,0.1045,4527.2,4527.0,0.2918]
[1757655745960,1.01580844,4527.1,4527.0,0.6145]
[1757655746160,1.01580844,4527.1,4527.0,0.4153]
[1757655747154,0.57670844,4527.1,4527.0,0.8262]
[1757655747352,0.57670844,4527.5,4527.4,0.4109]
[1757655747554,0.79970844,4527.7,4527.4,0.4109]
[1757655747853,0.57670844,4527.6,4527.5,0.5199]
[1757655748159,0.57670844,4527.6,4527.5,0.8205]
[1757655750967,0.57670844,4527.6,4527.5,1.61352313]
[1757655751263,0.223,4527.9,4527.8,0.6965]
[1757655751459,0.79992609,4527.9,4527.8,0.6965]
[1757655751860,0.96712609,4527.9,4527.8,0.6965]
[1757655753157,1.13432609,4527.9,4527.8,0.6965]
[1757655754252,0.57692609,4527.9,4527.8,0.6965]
[1757655754756,0.74412609,4527.9,4527.8,0.6965]
[1757655757860,0.57692609,4527.9,4527.8,0.6965]
[1757655760961,0.74412609,4527.9,4527.8,0.6965]
[1757655762070,0.57692609,4527.9,4527.8,0.6965]
[1757655762462,0.57692609,4527.9,4527.8,1.79012313]
[1757655762656,0.3902,4528.6,4528.5,0.8205]
[1757655763064,0.96688242,4528.6,4528.5,0.8205]
[1757655763571,1.13408242,4528.6,4528.5,0.8205]
[1757655763764,0.74388242,4528.6,4528.5,0.8205]
[1757655772473,1.01558242,4528.6,4528.5,0.3006]
[1757655772973,0.91108242,4528.6,4528.5,0.6223]
[1757655773666,0.91108242,4528.6,4528.5,0.8205]
[1757655774178,0.96588242,4528.6,4528.5,0.8205]
[1757655774882,0.74388242,4528.6,4528.5,0.8205]
[1757655778884,1.83750555,4528.6,4528.5,0.8205]
[1757655781387,2.00570555,4528.6,4528.5,0.8205]
[1757655787095,0.1051,4528.5,4528.0,0.124]
[1757655787285,1.53512313,4528.1,4528.0,0.3058]
[1757655787484,2.33380555,4528.1,4528.0,0.3058]
[1757655788986,2.33380555,4528.1,4528.0,0.4324]
[1757655791588,2.33380555,4528.1,4527.5,0.124]
[1757655791589,0.3364,4527.7,4527.5,0.124]
[1757655791883,2.00670555,4527.6,4527.5,0.641]
[1757655792088,2.00670555,4527.6,4527.5,0.8487]
[1757655793890,0.74488242,4527.6,4527.5,0.8487]
[1757655794290,0.57668242,4527.6,4527.5,0.8487]
[1757655795101,0.79868242,4527.8,4527.5,0.5429]
[1757655795303,0.57668242,4527.7,4527.5,0.5429]
[1757655795706,0.57668242,4527.7,4527.6,0.7247]
[1757655796600,0.74488242,4527.7,4527.6,0.7247]
[1757655796808,0.57668242,4527.7,4527.6,6.03919312]
[1757655797101,0.3902,4528.3,4528.2,0.7247]
[1757655797308,0.99653785,4528.3,4528.2,0.7247]
[1757655798099,2.25836098,4528.3,4528.2,0.7247]
[1757655798300,2.36346098,4528.3,4528.2,0.3058]
[1757655798506,0.3364,4528.1,4528.0,0.3058]
[1757655798706,0.4415,4528.1,4528.0,0.3058]
[1757655799010,1.04783785,4528.1,4528.0,0.3058]
[1757655800705,1.04783785,4528.1,4527.5,0.124]
[1757655800905,0.3364,4527.7,4527.6,0.517]
[1757655801105,0.94273785,4527.7,4527.6,0.517]
[1757655804004,0.94273785,4527.7,4527.6,0.7247]
[1757655811512,0.60633785,4527.7,4527.6,0.7247]
[1757655811805,1.19050655,4528.2,4528.0,0.5292]
[1757655811806,0.222,4528.1,4528.0,0.5292]
[1757655812006,0.82860986,4528.1,4528.0,0.8285]
[1757655812310,0.99580986,4528.1,4528.0,0.8285]
[1757655812712,1.16300986,4528.1,4528.0,0.8285]
[1757655816003,0.77380986,4528.1,4528.0,0.8285]
[1757655816210,0.60660986,4528.1,4528.0,0.8285]
[1757655817813,0.60660986,4528.1,4528.0,1.04935]
[1757655818013,0.60660986,4528.1,4528.0,5.04935]
[1757655818818,0.60660986,4528.1,4528.0,4.8285]
[1757655819307,0.60660986,4528.1,4528.0,0.8285]
[1757655820014,0.60660986,4528.1,4528.0,23.9285]
[1757655844525,0.28810986,4528.1,4528.0,23.9285]
[1757655848439,1.01320986,4528.1,4528.0,0.4985]
[1757655848831,1.58734207,4528.8,4528.0,0.5203]
[1757655849031,0.1262,4531.5,4528.0,0.5203]
[1757655849032,1.27933683,4533.1,4528.7,2.55867366]
[1757655849233,1.27933683,4534.4,4530.9,1.27933683]
[1757655849234,0.5356,4531.0,4530.9,1.27933683]
[1757655849540,0.3244,4531.0,4530.9,15.80833683]
[1757655849728,0.1262,4531.0,4530.9,19.80833683]
[1757655849929,0.1262,4531.0,4530.9,14.8533778]
[1757655850128,0.1262,4531.0,4530.9,14.93380673]
[1757655850328,0.5356,4531.0,4530.9,15.16280673]
[1757655851037,0.8513,4531.0,4530.9,15.16280673]
[1757655851235,0.8513,4531.0,4530.9,14.93380673]
[1757655851939,0.8513,4531.0,4530.9,15.72184376]
[1757655852236,0.8513,4531.0,4530.9,14.93380673]
[1757655852739,0.8513,4531.0,4530.9,0.63380673]
[1757655853232,0.8513,4531.0,4530.9,1.42121727]
[1757655854233,0.8513,4531.0,4530.9,0.63380673]
[1757655856143,0.8513,4531.0,4530.9,1.22351442]
[1757655857340,0.8513,4531.0,4530.9,0.63380673]
[1757655867446,0.4419,4531.0,4530.9,0.63380673]
[1757655867638,0.1153,4531.5,4531.0,0.22069]
[1757655867941,0.1153,4531.5,4531.4,1.6587643]
[1757655868137,0.1153,4531.5,4531.4,2.9150388]
[1757655868343,0.1153,4531.5,4531.4,6.9150388]
[1757655868541,0.1262,4532.0,4531.4,5.95384049]
[1757655868735,0.1153,4533.0,4531.9,15.39165376]
[1757655868940,0.1153,4532.0,4531.9,14.3]
[1757655869132,0.1153,4532.0,4531.9,16.28387603]
[1757655869538,0.434,4532.0,4531.9,16.28387603]
[1757655869737,0.626,4532.0,4531.9,15.19222227]
[1757655869937,0.626,4532.0,4531.9,16.28387603]
[1757655870139,0.626,4532.0,4531.9,15.19222227]
[1757655870339,0.626,4532.0,4531.9,15.9769074]
[1757655870740,0.626,4532.0,4531.9,15.19222227]
[1757655871550,0.434,4532.0,4531.9,15.19222227]
[1757655872248,0.626,4532.0,4531.9,15.19222227]
[1757655872544,0.434,4532.0,4531.9,14.86539811]
[1757655872747,0.434,4532.0,4531.9,15.19212911]
[1757655872947,0.626,4532.0,4531.9,15.19212911]
[1757655873151,0.8173,4532.0,4531.9,15.19212911]
[1757655874350,0.8173,4532.0,4531.9,15.97681424]
[1757655874543,0.8173,4532.0,4531.9,15.19212911]
[1757655875248,0.8173,4532.0,4531.9,15.97681424]
[1757655875750,0.8173,4532.0,4531.9,15.19212911]
[1757655877050,0.8173,4532.0,4531.9,14.854731]
[1757655877244,0.8173,4532.0,4531.9,15.17342563]
[1757655879249,0.8173,4532.0,4531.9,15.95811076]
[1757655880951,0.8173,4532.0,4531.9,15.17342563]
[1757655882955,0.8173,4532.0,4531.9,14.84669463]
[1757655883450,0.8173,4532.0,4531.9,14.528]
[1757655883653,0.8173,4532.0,4531.9,14.3]
[1757655883851,0.3833,4531.6,4531.5,1.40461884]
[1757655884047,0.702,4531.6,4531.5,0.227]
[1757655884252,0.702,4531.6,4531.5,14.527]
[1757655887467,1.79365376,4531.6,4531.5,14.3]
[1757655888656,0.702,4531.6,4531.5,14.3]
[1757655889661,0.5107,4531.6,4531.5,14.3]
[1757655889963,0.3187,4531.6,4531.5,14.3]
[1757655892463,0.5107,4531.6,4531.5,14.3]
[1757655893964,0.3187,4531.6,4531.5,14.3]
[1757655894353,0.5107,4531.6,4531.5,14.3]
[1757655896067,0.3187,4531.6,4531.5,14.3]
[1757655896454,0.702,4531.6,4531.5,14.3]
[1757655896671,0.3187,4531.6,4531.5,14.3]
[1757655897082,0.5107,4531.6,4531.5,14.3]
[1757655897281,0.5107,4531.6,4531.5,15.47761884]
[1757655897880,0.5107,4531.6,4531.5,14.3]
[1757655898384,0.3187,4531.6,4531.5,14.3]
[1757655898882,0.3187,4531.6,4531.5,15.47761884]
[1757655900480,0.5156,4531.6,4531.5,15.47761884]
[1757655900681,0.7152,4531.6,4531.5,15.47761884]
[1757655900881,0.7152,4531.6,4531.5,15.70361884]
[1757655901085,0.7152,4531.6,4531.5,14.526]
[1757655901973,0.7152,4531.6,4531.5,14.3]
[1757655902182,1.09165376,4531.8,4531.0,1.58226949]
[1757655902183,0.514,4531.1,4531.0,1.58226949]
[1757655902382,0.514,4531.1,4531.0,0.226]
[1757655902583,0.514,4531.1,4531.0,14.526]
[1757655902783,0.3171,4531.1,4531.0,14.526]
[1757655904186,0.3171,4531.1,4531.0,16.10826949]
[1757655904386,0.3171,4531.1,4531.0,17.19992325]
[1757655904587,0.3171,4531.1,4531.0,15.61765376]
[1757655906588,0.3171,4531.4,4531.0,19.61765376]
[1757655906795,0.3171,4531.4,4531.3,1.09165376]
[1757655907085,0.3171,4531.4,4531.3,1.31765376]
[1757655907475,0.3171,4531.4,4531.3,2.89904417]
[1757655908079,0.3171,4531.4,4531.3,1.31765376]
[1757655908287,0.3171,4531.4,4531.3,2.89904417]
[1757655908588,0.3171,4531.4,4531.3,1.31765376]
[1757655909488,0.3171,4531.4,4531.3,0.226]
[1757655910882,0.514,4531.4,4531.2,1.09165376]
[1757655911187,0.514,4531.3,4531.2,1.09165376]
[1757655911390,0.514,4531.3,4531.2,1.31765376]
[1757655911686,0.3171,4531.3,4531.2,1.31765376]
[1757655914991,0.514,4531.3,4531.2,1.31765376]
[1757655915786,0.3171,4531.2,4531.0,14.3]
[1757655916090,0.7136,4531.1,4531.0,14.3]
[1757655916285,0.7136,4531.1,4531.0,14.526]
[1757655916593,0.7136,4531.1,4531.0,14.3]
[1757655916893,0.7136,4531.1,4531.0,14.526]
[1757655917384,0.1969,4530.7,4530.6,1.97783686]
[1757655917586,0.7136,4530.7,4530.6,0.226]
[1757655917791,0.514,4530.7,4530.6,14.526]
[1757655919288,0.7136,4530.7,4530.6,14.3]
[1757655919493,0.7136,4530.7,4530.6,14.526]
[1757655919888,0.7136,4530.7,4530.6,15.88222806]
[1757655920087,0.7136,4530.7,4530.6,16.10822806]
[1757655921693,0.7136,4530.7,4530.6,15.88222806]
[1757655921890,0.7136,4530.7,4530.6,16.10822806]
[1757655922089,0.3171,4530.7,4530.6,16.10822806]
[1757655923699,0.514,4530.7,4530.6,16.10822806]
[1757655924098,0.7136,4530.7,4530.6,16.10822806]
[1757655924298,0.7136,4530.7,4530.6,14.526]
[1757655924600,0.7136,4530.7,4530.6,16.10822806]
[1757655925100,0.7136,4530.7,4530.6,14.526]
[1757655928098,0.514,4530.7,4530.6,14.526]
[1757655928503,0.7229,4530.7,4530.6,14.526]
[1757655929901,0.3171,4530.7,4530.6,14.526]
[1757655930395,0.3171,4530.7,4530.6,15.8032729]
[1757655932102,0.3171,4530.7,4530.6,19.8032729]
[1757655933499,0.3171,4530.7,4530.6,15.5772729]
[1757655933701,0.3171,4530.7,4530.6,15.8022729]
[1757655935508,0.3171,4530.7,4530.6,14.3]
[1757655935707,0.3171,4530.7,4530.6,14.525]
[1757655939011,0.3171,4530.7,4530.6,14.3]
[1757655939213,0.3171,4530.7,4530.6,14.525]
[1757655939713,0.7285,4530.7,4530.6,14.3]
[1757655939906,0.7285,4530.7,4530.6,14.525]
[1757655939907,0.743874,4530.7,4530.6,14.525]
[1757655940316,0.743874,4530.7,4530.6,14.3]
[1757655940514,0.75156031,4530.7,4530.6,14.525]
[1757655940814,0.75891007,4530.7,4530.6,14.525]
[1757655957124,0.55001007,4530.7,4530.6,14.525]
[1757655958627,0.34751007,4530.7,4530.6,14.525]
[1757655958818,0.53911007,4530.7,4530.6,14.525]
[1757655960026,0.74851007,4530.7,4530.6,14.525]
[1757655960426,0.74851007,4530.7,4530.6,14.3]
[1757655960622,0.74851007,4530.7,4530.6,14.524]
[1757655964522,0.74851007,4530.7,4530.6,14.3]
[1757655964726,0.74851007,4530.7,4530.6,14.524]
[1757655965622,0.53911007,4530.7,4530.6,14.524]
[1757655968429,0.34751007,4530.7,4530.6,14.524]
[1757655968831,0.34751007,4530.7,4530.6,14.80205741]
[1757655969329,0.03041007,4530.7,4530.6,14.80205741]
[1757655969631,0.1224,4531.0,4530.6,15.19919741]
[1757655969930,0.1224,4531.0,4530.9,1.2772729]
[1757655970128,0.1224,4531.5,4530.9,1.77933031]
[1757655970330,0.0224,4531.5,4531.4,15.2772729]
[1757655970532,0.0224,4531.5,4531.4,15.77933031]
[1757655971426,0.0224,4531.5,4531.4,19.77933031]
[1757655972128,0.3285,4531.5,4531.4,19.77933031]
[1757655972332,0.1153,4532.0,4531.4,20.17640031]
[1757655972526,0.1153,4532.0,4531.5,0.27805741]
[1757655972729,0.1153,4532.0,4531.6,0.50205741]
[1757655972939,0.1153,4532.0,4531.7,0.27805741]
[1757655973232,0.1153,4532.0,4531.8,0.50205741]
[1757655973421,0.1153,4532.0,4531.9,0.50205741]
[1757655974027,0.1153,4532.0,4531.9,14.10205741]
[1757655974223,0.4214,4532.0,4531.9,14.10205741]
[1757655978333,0.1262,4532.5,4531.9,15.37933031]
[1757655978632,0.3061,4532.4,4532.0,0.27805741]
[1757655978826,0.3061,4532.4,4532.1,0.50205741]
[1757655979029,0.3061,4532.4,4532.2,0.27805741]
[1757655979230,0.3061,4532.4,4532.3,0.50205741]
[1757655979734,0.3061,4532.4,4532.3,14.10205741]
[1757655982331,0.1262,4532.5,4532.3,19.59997031]
[1757655982524,0.3061,4533.1,4532.4,4.27805741]
[1757655982726,1.1894399,4536.4,4535.0,0.2158]
[1757655982924,1.1894399,4536.4,4534.5,0.0888]
[1757655982925,0.1916,4535.3,4535.2,0.1983]
[1757655983128,0.401,4535.3,4535.2,0.50035741]
[1757655983332,0.1916,4535.3,4535.2,0.52223597]
[1757655983536,0.1916,4535.3,4535.2,0.31828813]
[1757655983729,0.401,4535.3,4535.2,13.3432]
[1757655983927,0.401,4535.3,4535.2,13.21221393]
[1757655984124,0.401,4535.3,4534.4,1.2772729]
[1757655984125,0.27,4535.2,4534.5,0.0049]
[1757655984334,1.7498271,4534.5,4534.0,0.39685]
[1757655984538,0.1265,4535.0,4534.4,1.2772729]
[1757655984730,0.1265,4535.0,4534.9,12.59967775]
[1757655985032,0.1265,4536.0,4535.4,1.2772729]
[1757655985246,0.1265,4536.0,4535.9,1.2772729]
[1757655985429,0.1265,4536.0,4535.9,1.5022729]
[1757655985629,0.1265,4536.5,4535.9,5.7227329]
[1757655985825,0.1265,4537.0,4536.4,13.0772729]
[1757655986031,0.1265,4537.0,4536.9,1.2772729]
[1757655986331,0.1265,4537.5,4536.9,1.31313858]
[1757655986535,0.1265,4537.5,4536.5,6.82573177]
[1757655986536,0.3061,4536.9,4536.0,32.86513858]
[1757655986837,0.1265,4536.5,4536.1,0.225]
[1757655987038,0.3061,4536.4,4536.1,0.225]
[1757655987232,0.3061,4536.4,4536.0,31.777]
[1757655987442,0.4977,4536.4,4536.3,11.8]
[1757655987639,0.7071,4536.4,4536.3,11.8]
[1757655987835,0.4433,4536.5,4536.3,17.11313858]
[1757655988434,0.1265,4537.0,4536.4,4.0]
[1757655988743,0.1265,4537.0,4536.9,1.08813858]
[1757655988933,0.4433,4537.0,4536.9,1.31413858]
[1757655989127,0.4433,4537.0,4536.9,1.08813858]
[1757655989334,0.4433,4537.0,4536.9,1.31413858]
[1757655992241,0.8507,4537.0,4536.9,1.31413858]
[1757655992443,0.8507,4537.0,4536.3,11.8]
[1757655992646,0.5123,4536.4,4536.3,11.8]
[1757655992852,0.5123,4536.4,4536.3,12.026]
[1757655993143,0.3168,4536.4,4536.3,12.026]
[1757655994045,0.3168,4536.4,4536.3,17.11413858]
[1757655994242,0.1167,4536.5,4536.3,17.11413858]
[1757655995039,0.4335,4536.5,4536.3,17.11413858]
[1757655995238,0.3168,4536.4,4536.3,17.11413858]
[1757655996050,0.1167,4536.5,4536.3,17.11413858]
[1757655996350,0.4335,4536.5,4536.3,17.11413858]
[1757655996741,0.3168,4536.4,4536.3,17.11413858]
[1757655996937,0.3168,4536.4,4536.3,13.11413858]
[1757655997340,0.3168,4536.4,4536.3,13.38904534]
[1757655997541,1.08813858,4538.1,4536.3,13.38904534]
[1757655997542,0.1167,4538.5,4536.6,0.99155]
[1757655997743,0.3122,4538.5,4538.4,1.08813858]
[1757655997948,0.5241,4538.5,4536.7,2.85971887]
[1757655998149,0.5241,4538.5,4538.4,11.5]
[1757655998150,0.1167,4538.5,4538.4,11.5]
[1757655998349,0.1167,4539.0,4538.4,11.5]
[1757655998350,0.1167,4539.0,4538.4,11.726]
[1757655998549,0.1167,4539.0,4538.4,0.226]
[1757655998847,0.1167,4538.5,4538.4,0.226]
[1757655999055,0.1167,4538.5,4538.4,1.31413858]
[1757655999248,0.1167,4539.5,4538.4,1.56264701]
[1757655999549,0.4335,4540.0,4539.4,10.18813858]
[1757655999750,0.4335,4540.0,4539.9,1.08813858]
[1757656000050,0.4335,4540.0,4539.9,1.31413858]
[1757656000252,0.4335,4540.0,4539.9,1.23713858]
[1757656000553,0.4335,4540.0,4539.9,9.249]
[1757656000740,0.629,4540.0,4539.9,9.249]
[1757656000940,0.04874467,4542.0,4540.0,0.1207]
[1757656001147,0.1955,4540.2,4540.1,0.4889]
[1757656001351,0.1955,4540.2,4540.1,0.6966]
[1757656001547,0.4074,4540.2,4540.1,0.6966]
[1757656001744,0.4074,4540.2,4540.1,0.226]
[1757656001943,0.4074,4540.2,4540.1,0.7299]
[1757656002347,4.4074,4540.2,4539.9,9.1]
[1757656002649,4.4074,4540.2,4540.0,0.226]
[1757656002953,0.8374,4540.0,4539.9,9.326]
[1757656003351,4.8374,4540.0,4538.9,0.2962]
[1757656003547,0.8374,4540.0,4539.0,0.226]
[1757656003855,0.5206,4540.0,4539.1,9.1]
[1757656004051,0.7242,4539.2,4539.1,9.6039]
[1757656005251,0.7242,4539.2,4539.1,9.7966]
[1757656005252,0.4074,4539.2,4539.1,9.7966]
[1757656006157,0.7242,4539.2,4539.1,9.7966]
[1757656006850,0.7242,4539.2,4539.1,9.1]
[1757656007046,0.7242,4539.2,4539.1,9.6039]
[1757656007555,0.7242,4539.2,4539.1,0.7299]
[1757656008158,4.7242,4539.2,4539.1,0.5222]
[1757656008360,4.7242,4539.2,4539.1,0.226]
[1757656008559,4.4074,4539.2,4539.1,0.9226]
[1757656009368,0.4074,4539.2,4539.1,0.9226]
[1757656009551,0.7242,4539.2,4539.1,0.9226]
[1757656011359,1.26163026,4539.2,4539.1,0.9226]
[1757656011663,0.4074,4539.1,4539.0,0.8173]
[1757656011860,0.94483026,4539.1,4539.0,0.8173]
[1757656012158,5.26163026,4539.1,4539.0,0.47501372]
[1757656012347,0.7242,4538.8,4538.7,0.226]
[1757656012550,1.26163026,4538.8,4538.7,1.19001309]
[1757656013461,1.26163026,4538.8,4538.2,0.2962]
[1757656013462,5.26163026,4538.8,4538.2,0.2962]
[1757656013760,0.7242,4538.1,4538.0,0.5544]
[1757656014058,1.26347151,4538.1,4538.0,0.4337]
[1757656014360,1.26347151,4538.1,4538.0,0.7299]
[1757656015163,1.26347151,4538.1,4538.0,0.226]
[1757656015855,4.94667151,4538.1,4536.7,3.7662474]
[1757656016062,0.73477151,4538.0,4537.9,0.6966]
[1757656016560,0.94667151,4538.0,4537.9,0.6966]
[1757656017056,0.53927151,4538.0,4537.9,0.6966]
[1757656017264,0.1955,4538.6,4538.5,0.8173]
[1757656017454,0.94753708,4538.6,4538.5,0.8173]
[1757656017964,0.54013708,4538.6,4538.5,0.8173]
[1757656018165,0.54013708,4538.6,4538.5,1.0433]
[1757656020464,0.54013708,4538.6,4538.5,10.1433]
[1757656021866,0.1988,4539.5,4539.4,0.3965]
[1757656022065,1.17972067,4539.9,4539.4,0.678]
[1757656022268,0.3136,4539.9,4539.5,0.2815]
[1757656022469,0.312,4540.0,4539.9,0.3965]
[1757656022674,0.6256,4540.0,4539.9,0.904]
[1757656022963,0.6256,4540.0,4539.9,0.6225]
[1757656023163,0.8378,4540.0,4539.9,0.6225]
[1757656023363,0.8378,4540.0,4539.7,0.226]
[1757656023364,0.411,4539.8,4539.7,0.226]
[1757656023559,0.7246,4539.8,4539.7,0.226]
[1757656023761,0.8427,4539.5,4539.4,0.226]
[1757656024369,0.1181,4539.0,4538.9,0.4221]
[1757656024565,0.8427,4539.0,4538.9,0.4221]
[1757656025070,0.3136,4538.9,4538.5,9.1]
[1757656025272,0.5291,4539.0,4538.5,9.1]
[1757656025273,0.7246,4538.7,4538.6,0.4221]
[1757656025473,0.1181,4539.0,4538.6,0.6225]
[1757656025677,0.3136,4539.0,4538.9,0.678]
[1757656025865,0.4317,4539.5,4538.9,0.678]
[1757656026066,0.6305,4539.5,4539.4,0.3965]
[1757656026372,0.6305,4539.5,4539.4,0.6225]
[1757656026575,0.6305,4539.5,4539.4,0.226]
[1757656026576,0.8427,4539.5,4539.4,0.226]
[1757656027068,0.3136,4539.4,4538.5,9.1]
[1757656027270,0.7246,4538.6,4538.5,9.1]
[1757656027569,0.7246,4538.6,4538.5,9.326]
[1757656028375,0.7246,4538.6,4538.5,0.226]
[1757656028872,0.4317,4538.5,4538.3,0.226]
[1757656029073,0.7246,4538.4,4538.3,0.226]
[1757656029275,0.1181,4538.5,4537.3,0.2815]
[1757656029276,0.4317,4538.0,4537.3,0.2815]
[1757656029679,0.4317,4538.0,4537.9,31.961]
[1757656030578,0.4317,4538.0,4537.9,31.735]
[1757656030782,0.4317,4538.0,4537.9,31.961]
[1757656032786,0.6305,4538.0,4537.9,0.6225]
[1757656033684,0.6305,4538.0,4537.9,0.904]
[1757656033879,0.4317,4538.5,4537.9,0.904]
[1757656034085,0.7246,4538.3,4538.2,0.1961]
[1757656034280,1.25365989,4538.3,4538.2,0.1961]
[1757656034487,1.25365989,4538.3,4538.2,0.4221]
[1757656035386,1.18598408,4539.6,4538.2,38.82074891]
[1757656035586,0.1181,4540.5,4539.4,3.7662474]
[1757656035789,0.3136,4539.9,4539.5,9.12337]
[1757656036181,0.3136,4539.9,4539.5,8.727]
[1757656036489,0.3136,4539.9,4539.7,0.39634]
[1757656036691,0.3136,4539.9,4539.8,0.228]
[1757656036887,0.3136,4539.9,4539.8,4.228]
[1757656037088,0.3136,4540.3,4539.8,4.228]